[Event "Titled Tuesday Blitz August 22 Late 2023"]
[White "Bochnicka, Vladimir"]
[Black "Adewumi, Tanitoluwa"]
[WhiteFideId "14943450"]
[BlackFideId "30966396"]
[WhiteElo "2439"]
[BlackElo "2758"]
[Result "0-1"]
[Round "1"]
[TimeControl "180+1"]
[Date "2023.08.22"]
[WhiteClock "0:00:05"]
[BlackClock "0:00:10"]
[Board "77"]

1. e4 {[%clk 0:02:59]}  c5 {[%clk 0:02:58]} 2. Nf3 {[%clk 0:02:59]}  e6 {[%clk 0:02:58]} 3. g3 {[%clk 0:02:58]}  Nc6 {[%clk 0:02:53]} 4. Bg2 {[%clk 0:02:58]}  Nf6 {[%clk 0:02:51]} 5. d3 {[%clk 0:02:57]}  d5 {[%clk 0:02:47]} 6. Qe2 {[%clk 0:02:56]}  Be7 {[%clk 0:02:42]} 7. e5 {[%clk 0:02:51]}  Nd7 {[%clk 0:02:40]} 8. c4 {[%clk 0:02:49]}  O-O {[%clk 0:02:19]} 9. O-O {[%clk 0:02:46]}  f6 {[%clk 0:01:48]} 10. cxd5 {[%clk 0:02:21]}  exd5 {[%clk 0:01:48]} 11. Bf4 {[%clk 0:02:12]}  fxe5 {[%clk 0:01:36]} 12. Nxe5 {[%clk 0:02:11]}  Nd4 {[%clk 0:01:21]} 13. Bxd5+ {[%clk 0:01:51]}  Kh8 {[%clk 0:01:20]} 14. Qh5 {[%clk 0:01:52]}  Nxe5 {[%clk 0:01:11]} 15. Be4 {[%clk 0:01:26]}  Nef3+ {[%clk 0:00:46]} 16. Bxf3 {[%clk 0:01:21]}  Rf5 {[%clk 0:00:45]} 17. Qg4 {[%clk 0:01:12]}  h5 {[%clk 0:00:34]} 18. Qg6 {[%clk 0:01:04]}  Nxf3+ {[%clk 0:00:34]} 19. Kh1 {[%clk 0:01:00]}  Ne5 {[%clk 0:00:27]} 20. Bxe5 {[%clk 0:00:56]}  Rxe5 {[%clk 0:00:25]} 21. Nc3 {[%clk 0:00:56]}  Bg4 {[%clk 0:00:16]} 22. Rae1 {[%clk 0:00:56]}  Rxe1 {[%clk 0:00:16]} 23. Rxe1 {[%clk 0:00:57]}  Bf6 {[%clk 0:00:16]} 24. Kg2 {[%clk 0:00:54]}  Bxc3 {[%clk 0:00:16]} 25. bxc3 {[%clk 0:00:54]}  Qd5+ {[%clk 0:00:17]} 26. Re4 {[%clk 0:00:46]}  Rf8 {[%clk 0:00:14]} 27. Kg1 {[%clk 0:00:40]}  Qxd3 {[%clk 0:00:12]} 28. h3 {[%clk 0:00:11]}  Qd1+ {[%clk 0:00:10]} 29. Kg2 {[%clk 0:00:05]}  Bf3+ {[%clk 0:00:10]} 0-1


[Site "https://www.chess.com"]

[Event "Titled Tuesday Blitz August 22 Late 2023"]
[White "Ghazarian, Kirk"]
[Black "Salazar Farias, Luis German"]
[WhiteFideId "30908604"]
[BlackFideId "3902170"]
[WhiteElo "2748"]
[BlackElo "2436"]
[Result "1-0"]
[Round "1"]
[TimeControl "180+1"]
[Date "2023.08.22"]
[WhiteClock "0:00:26"]
[BlackClock "0:00:00"]
[Board "80"]

1. e4 {[%clk 0:03:00]}  c6 {[%clk 0:02:47]} 2. d3 {[%clk 0:02:57]}  d5 {[%clk 0:02:45]} 3. Nf3 {[%clk 0:02:57]}  Qc7 {[%clk 0:02:26]} 4. Nbd2 {[%clk 0:02:56]}  Bg4 {[%clk 0:02:22]} 5. h3 {[%clk 0:02:55]}  Bh5 {[%clk 0:02:21]} 6. g4 {[%clk 0:02:55]}  Bg6 {[%clk 0:02:20]} 7. Bg2 {[%clk 0:02:56]}  e6 {[%clk 0:02:19]} 8. O-O {[%clk 0:02:55]}  Nd7 {[%clk 0:02:14]} 9. Qe2 {[%clk 0:02:54]}  Bc5 {[%clk 0:02:12]} 10. d4 {[%clk 0:02:52]}  Bb6 {[%clk 0:02:10]} 11. c4 {[%clk 0:02:51]}  dxe4 {[%clk 0:01:59]} 12. Nxe4 {[%clk 0:02:52]}  Ngf6 {[%clk 0:01:53]} 13. Nxf6+ {[%clk 0:02:45]}  Nxf6 {[%clk 0:01:54]} 14. Bg5 {[%clk 0:02:38]}  a6 {[%clk 0:01:28]} 15. c5 {[%clk 0:02:33]}  Ba7 {[%clk 0:01:28]} 16. Ne5 {[%clk 0:02:33]}  O-O-O {[%clk 0:01:23]} 17. Rad1 {[%clk 0:02:24]}  Bb8 {[%clk 0:01:15]} 18. Bf4 {[%clk 0:02:19]}  Qe7 {[%clk 0:00:58]} 19. Bg3 {[%clk 0:02:08]}  Nd5 {[%clk 0:00:57]} 20. Rfe1 {[%clk 0:01:52]}  Qf6 {[%clk 0:00:47]} 21. Qd2 {[%clk 0:01:45]}  h5 {[%clk 0:00:43]} 22. g5 {[%clk 0:01:40]}  Qe7 {[%clk 0:00:32]} 23. h4 {[%clk 0:01:28]}  Bf5 {[%clk 0:00:32]} 24. b4 {[%clk 0:01:22]}  f6 {[%clk 0:00:31]} 25. Nc4 {[%clk 0:01:23]}  Bxg3 {[%clk 0:00:29]} 26. fxg3 {[%clk 0:01:23]}  fxg5 {[%clk 0:00:29]} 27. Bxd5 {[%clk 0:01:21]}  cxd5 {[%clk 0:00:25]} 28. Nd6+ {[%clk 0:01:20]}  Rxd6 {[%clk 0:00:23]} 29. cxd6 {[%clk 0:01:21]}  Qxd6 {[%clk 0:00:23]} 30. Qxg5 {[%clk 0:01:21]}  Qxb4 {[%clk 0:00:20]} 31. Qxg7 {[%clk 0:01:18]}  Rf8 {[%clk 0:00:18]} 32. Qe5 {[%clk 0:01:01]}  Qc3 {[%clk 0:00:01]} 33. Rc1 {[%clk 0:00:51]}  Bc2 {[%clk 0:00:01]} 34. Qxe6+ {[%clk 0:00:43]}  Kb8 {[%clk 0:00:01]} 35. Qd6+ {[%clk 0:00:31]}  Ka7 {[%clk 0:00:01]} 36. Qc5+ {[%clk 0:00:25]}  Qxc5 {[%clk 0:00:01]} 37. dxc5 {[%clk 0:00:26]}  Be4 {[%clk 0:00:01]} 38. Rf1 {[%clk 0:00:27]}  Rg8 {[%clk 0:00:01]} 39. Kh2 {[%clk 0:00:27]}  a5 {[%clk 0:00:00]} 40. Rf7 {[%clk 0:00:26]} 1-0


[Site "https://www.chess.com"]

[Event "Titled Tuesday Blitz August 22 Late 2023"]
[White "Eggleston, Thomas A"]
[Black "Akobian, Varuzhan"]
[WhiteFideId "412139"]
[BlackFideId "13300580"]
[WhiteElo "2435"]
[BlackElo "2742"]
[Result "1-0"]
[Round "1"]
[TimeControl "180+1"]
[Date "2023.08.22"]
[WhiteClock "0:00:01"]
[BlackClock "0:00:05"]
[Board "81"]

1. e4 {[%clk 0:03:00]}  d6 {[%clk 0:02:58]} 2. d4 {[%clk 0:03:00]}  Nf6 {[%clk 0:02:53]} 3. Nc3 {[%clk 0:03:00]}  c6 {[%clk 0:02:52]} 4. a4 {[%clk 0:02:59]}  Qc7 {[%clk 0:02:51]} 5. Nf3 {[%clk 0:02:57]}  Bg4 {[%clk 0:02:50]} 6. Be2 {[%clk 0:02:53]}  e6 {[%clk 0:02:49]} 7. h3 {[%clk 0:02:44]}  Bh5 {[%clk 0:02:49]} 8. Bg5 {[%clk 0:02:29]}  Be7 {[%clk 0:02:47]} 9. O-O {[%clk 0:02:21]}  O-O {[%clk 0:02:43]} 10. Nd2 {[%clk 0:02:14]}  Bxe2 {[%clk 0:02:38]} 11. Qxe2 {[%clk 0:02:14]}  h6 {[%clk 0:02:38]} 12. Be3 {[%clk 0:02:09]}  d5 {[%clk 0:02:38]} 13. e5 {[%clk 0:02:04]}  Nfd7 {[%clk 0:02:35]} 14. f4 {[%clk 0:02:04]}  f5 {[%clk 0:02:34]} 15. g4 {[%clk 0:01:54]}  c5 {[%clk 0:02:29]} 16. Nb5 {[%clk 0:01:53]}  Qd8 {[%clk 0:02:23]} 17. c3 {[%clk 0:01:53]}  a6 {[%clk 0:02:20]} 18. Na3 {[%clk 0:01:48]}  cxd4 {[%clk 0:02:18]} 19. cxd4 {[%clk 0:01:42]}  Nc6 {[%clk 0:02:17]} 20. Nc2 {[%clk 0:01:31]}  Rc8 {[%clk 0:02:14]} 21. Rac1 {[%clk 0:01:22]}  Qb6 {[%clk 0:02:08]} 22. b3 {[%clk 0:01:16]}  Nb4 {[%clk 0:01:54]} 23. Nxb4 {[%clk 0:01:16]}  Rc5 {[%clk 0:01:53]} 24. dxc5 {[%clk 0:01:13]}  Qxb4 {[%clk 0:01:51]} 25. Nf3 {[%clk 0:00:59]}  Nxc5 {[%clk 0:01:47]} 26. Nd4 {[%clk 0:00:54]}  Nxb3 {[%clk 0:01:45]} 27. Nxb3 {[%clk 0:00:45]}  Qxb3 {[%clk 0:01:44]} 28. Rb1 {[%clk 0:00:41]}  Qxa4 {[%clk 0:01:38]} 29. Rxb7 {[%clk 0:00:41]}  Bh4 {[%clk 0:01:38]} 30. Rc1 {[%clk 0:00:33]}  Qe4 {[%clk 0:01:36]} 31. Rcc7 {[%clk 0:00:21]}  fxg4 {[%clk 0:01:26]} 32. Rxg7+ {[%clk 0:00:20]}  Kh8 {[%clk 0:01:26]} 33. Rh7+ {[%clk 0:00:19]}  Qxh7 {[%clk 0:01:26]} 34. Rxh7+ {[%clk 0:00:19]}  Kxh7 {[%clk 0:01:27]} 35. hxg4 {[%clk 0:00:18]}  d4 {[%clk 0:01:25]} 36. Bd2 {[%clk 0:00:15]}  Rd8 {[%clk 0:01:21]} 37. Qxa6 {[%clk 0:00:14]}  Re8 {[%clk 0:01:07]} 38. Qd3+ {[%clk 0:00:12]}  Kg7 {[%clk 0:01:07]} 39. Qxd4 {[%clk 0:00:11]}  Rd8 {[%clk 0:01:07]} 40. Qc3 {[%clk 0:00:09]}  Kg6 {[%clk 0:00:44]} 41. Be3 {[%clk 0:00:08]}  Be7 {[%clk 0:00:42]} 42. Qc2+ {[%clk 0:00:07]}  Kg7 {[%clk 0:00:42]} 43. Qc4 {[%clk 0:00:06]}  Rd5 {[%clk 0:00:41]} 44. Qc6 {[%clk 0:00:04]}  Kf7 {[%clk 0:00:41]} 45. Kg2 {[%clk 0:00:03]}  Rd3 {[%clk 0:00:39]} 46. Kf3 {[%clk 0:00:02]}  Ra3 {[%clk 0:00:35]} 47. Ke4 {[%clk 0:00:03]}  Rb3 {[%clk 0:00:29]} 48. Bd4 {[%clk 0:00:02]}  Rb4 {[%clk 0:00:29]} 49. f5 {[%clk 0:00:02]}  exf5+ {[%clk 0:00:28]} 50. gxf5 {[%clk 0:00:01]}  Bc5 {[%clk 0:00:28]} 51. Qe6+ {[%clk 0:00:01]}  Kg7 {[%clk 0:00:28]} 52. Qf6+ {[%clk 0:00:01]}  Kh7 {[%clk 0:00:28]} 53. Qg6+ {[%clk 0:00:02]}  Kh8 {[%clk 0:00:28]} 54. Qf6+ {[%clk 0:00:02]}  Kh7 {[%clk 0:00:29]} 55. Qf7+ {[%clk 0:00:02]}  Kh8 {[%clk 0:00:29]} 56. e6+ {[%clk 0:00:02]}  Rxd4+ {[%clk 0:00:27]} 57. Kf3 {[%clk 0:00:03]}  Rd3+ {[%clk 0:00:26]} 58. Kf4 {[%clk 0:00:02]}  Rd4+ {[%clk 0:00:23]} 59. Kg3 {[%clk 0:00:02]}  Rd3+ {[%clk 0:00:23]} 60. Kg4 {[%clk 0:00:02]}  Re3 {[%clk 0:00:20]} 61. Kf4 {[%clk 0:00:02]}  Re1 {[%clk 0:00:19]} 62. f6 {[%clk 0:00:02]}  Rf1+ {[%clk 0:00:18]} 63. Ke4 {[%clk 0:00:02]}  Rg1 {[%clk 0:00:18]} 64. Kd5 {[%clk 0:00:02]}  Rg4 {[%clk 0:00:16]} 65. e7 {[%clk 0:00:01]}  Bxe7 {[%clk 0:00:16]} 66. fxe7 {[%clk 0:00:01]}  Rg8 {[%clk 0:00:15]} 67. Kd6 {[%clk 0:00:01]}  Re8 {[%clk 0:00:05]} 68. Qxe8+ {[%clk 0:00:01]} 1-0


[Site "https://www.chess.com"]

[Event "Titled Tuesday Blitz August 22 Late 2023"]
[White "Leiva, Gianmarco"]
[Black "Baches Garcia, Guillermo"]
[WhiteFideId "3804399"]
[BlackFideId "2209764"]
[WhiteElo "2742"]
[BlackElo "2434"]
[Result "1-0"]
[Round "1"]
[TimeControl "180+1"]
[Date "2023.08.22"]
[WhiteClock "0:00:10"]
[BlackClock "0:00:00"]
[Board "82"]

1. e4 {[%clk 0:02:40]}  c5 {[%clk 0:03:00]} 2. Nf3 {[%clk 0:02:39]}  d6 {[%clk 0:03:00]} 3. Bb5+ {[%clk 0:02:39]}  Bd7 {[%clk 0:03:00]} 4. Bc4 {[%clk 0:02:36]}  Nc6 {[%clk 0:02:59]} 5. h3 {[%clk 0:02:34]}  Nf6 {[%clk 0:02:59]} 6. d3 {[%clk 0:02:34]}  e6 {[%clk 0:02:59]} 7. a3 {[%clk 0:02:28]}  d5 {[%clk 0:02:55]} 8. exd5 {[%clk 0:02:28]}  exd5 {[%clk 0:02:55]} 9. Ba2 {[%clk 0:02:29]}  Qe7+ {[%clk 0:02:50]} 10. Qe2 {[%clk 0:02:28]}  Qxe2+ {[%clk 0:02:43]} 11. Kxe2 {[%clk 0:02:28]}  O-O-O {[%clk 0:02:37]} 12. Bg5 {[%clk 0:02:23]}  Be6 {[%clk 0:02:27]} 13. Nc3 {[%clk 0:02:21]}  h6 {[%clk 0:02:23]} 14. Bxf6 {[%clk 0:02:19]}  gxf6 {[%clk 0:02:21]} 15. Rhe1 {[%clk 0:02:19]}  Ne5 {[%clk 0:02:14]} 16. Nh4 {[%clk 0:02:02]}  h5 {[%clk 0:02:03]} 17. f4 {[%clk 0:01:52]}  Ng6 {[%clk 0:02:01]} 18. Nxg6 {[%clk 0:01:48]}  fxg6 {[%clk 0:02:01]} 19. Kf3 {[%clk 0:01:48]}  Bf7 {[%clk 0:01:55]} 20. g3 {[%clk 0:01:48]}  g5 {[%clk 0:01:36]} 21. f5 {[%clk 0:01:27]}  g4+ {[%clk 0:01:24]} 22. hxg4 {[%clk 0:01:26]}  hxg4+ {[%clk 0:01:22]} 23. Kg2 {[%clk 0:01:27]}  Bd6 {[%clk 0:01:14]} 24. Rh1 {[%clk 0:01:18]}  Be5 {[%clk 0:01:06]} 25. Rxh8 {[%clk 0:01:09]}  Rxh8 {[%clk 0:01:05]} 26. Bxd5 {[%clk 0:01:00]}  Bxc3 {[%clk 0:00:57]} 27. Bxf7 {[%clk 0:01:00]}  Bxb2 {[%clk 0:00:57]} 28. Re1 {[%clk 0:00:52]}  Be5 {[%clk 0:00:55]} 29. Re4 {[%clk 0:00:52]}  Kc7 {[%clk 0:00:43]} 30. Rxg4 {[%clk 0:00:51]}  Rh7 {[%clk 0:00:40]} 31. Bc4 {[%clk 0:00:44]}  Kc6 {[%clk 0:00:34]} 32. a4 {[%clk 0:00:43]}  a6 {[%clk 0:00:30]} 33. Rg6 {[%clk 0:00:38]}  b5 {[%clk 0:00:27]} 34. axb5+ {[%clk 0:00:36]}  axb5 {[%clk 0:00:27]} 35. Bb3 {[%clk 0:00:33]}  Kd6 {[%clk 0:00:18]} 36. g4 {[%clk 0:00:32]}  Rh2+ {[%clk 0:00:16]} 37. Kf1 {[%clk 0:00:30]}  Rh3 {[%clk 0:00:06]} 38. Rg8 {[%clk 0:00:26]}  Rg3 {[%clk 0:00:06]} 39. Kf2 {[%clk 0:00:23]}  b4 {[%clk 0:00:05]} 40. Rg6 {[%clk 0:00:20]}  Ke7 {[%clk 0:00:04]} 41. Bd5 {[%clk 0:00:13]}  Rh3 {[%clk 0:00:04]} 42. Bg2 {[%clk 0:00:11]}  Rh8 {[%clk 0:00:02]} 43. g5 {[%clk 0:00:10]}  fxg5 {[%clk 0:00:00]} 44. Re6+ {[%clk 0:00:10]} 1-0


[Site "https://www.chess.com"]

[Event "Titled Tuesday Blitz August 22 Late 2023"]
[White "Buchenau, Frank"]
[Black "Martinez Ramirez, Lennis"]
[WhiteFideId "4604350"]
[BlackFideId "3509079"]
[WhiteElo "2432"]
[BlackElo "2741"]
[Result "1-0"]
[Round "1"]
[TimeControl "180+1"]
[Date "2023.08.22"]
[WhiteClock "0:00:29"]
[BlackClock "0:00:14"]
[Board "83"]

1. e4 {[%clk 0:03:00]}  c5 {[%clk 0:02:59]} 2. Nf3 {[%clk 0:03:00]}  Nc6 {[%clk 0:03:00]} 3. Bb5 {[%clk 0:03:00]}  Na5 {[%clk 0:02:59]} 4. c3 {[%clk 0:02:55]}  a6 {[%clk 0:02:59]} 5. Be2 {[%clk 0:02:53]}  e6 {[%clk 0:02:59]} 6. d4 {[%clk 0:02:51]}  d5 {[%clk 0:02:59]} 7. exd5 {[%clk 0:02:47]}  exd5 {[%clk 0:02:57]} 8. dxc5 {[%clk 0:02:45]}  Nc6 {[%clk 0:02:57]} 9. Be3 {[%clk 0:02:44]}  Nf6 {[%clk 0:02:55]} 10. O-O {[%clk 0:02:43]}  Ng4 {[%clk 0:02:55]} 11. Bd4 {[%clk 0:02:42]}  Be7 {[%clk 0:02:53]} 12. Bxg7 {[%clk 0:02:39]}  Rg8 {[%clk 0:02:53]} 13. Bd4 {[%clk 0:02:38]}  Nf6 {[%clk 0:02:46]} 14. Re1 {[%clk 0:02:35]}  Bh3 {[%clk 0:02:45]} 15. g3 {[%clk 0:02:32]}  Ne4 {[%clk 0:02:45]} 16. Bf1 {[%clk 0:02:26]}  Qd7 {[%clk 0:02:41]} 17. Nbd2 {[%clk 0:02:23]}  Bxf1 {[%clk 0:02:39]} 18. Rxf1 {[%clk 0:02:08]}  Nxc5 {[%clk 0:02:40]} 19. Bxc5 {[%clk 0:02:00]}  Bxc5 {[%clk 0:02:41]} 20. Re1+ {[%clk 0:02:00]}  Kf8 {[%clk 0:02:41]} 21. Nb3 {[%clk 0:01:58]}  Ba7 {[%clk 0:02:41]} 22. Qd3 {[%clk 0:01:54]}  Rg6 {[%clk 0:02:33]} 23. Rad1 {[%clk 0:01:51]}  Rd8 {[%clk 0:02:33]} 24. Nh4 {[%clk 0:01:36]}  Rh6 {[%clk 0:02:02]} 25. Nd4 {[%clk 0:01:29]}  Qg4 {[%clk 0:02:00]} 26. Ndf5 {[%clk 0:01:26]}  Rf6 {[%clk 0:01:51]} 27. Kg2 {[%clk 0:01:22]}  d4 {[%clk 0:01:44]} 28. Qe4 {[%clk 0:01:18]}  Qxe4+ {[%clk 0:01:30]} 29. Rxe4 {[%clk 0:01:17]}  dxc3 {[%clk 0:01:31]} 30. Rxd8+ {[%clk 0:01:16]}  Nxd8 {[%clk 0:01:32]} 31. bxc3 {[%clk 0:01:15]}  Rb6 {[%clk 0:01:32]} 32. Rb4 {[%clk 0:01:02]}  Rc6 {[%clk 0:01:26]} 33. c4 {[%clk 0:01:01]}  Bc5 {[%clk 0:01:25]} 34. Rb2 {[%clk 0:00:59]}  Ba3 {[%clk 0:01:13]} 35. Rd2 {[%clk 0:00:57]}  Ne6 {[%clk 0:01:03]} 36. Rd7 {[%clk 0:00:57]}  Rb6 {[%clk 0:00:55]} 37. Nf3 {[%clk 0:00:52]}  Ke8 {[%clk 0:00:56]} 38. Rd2 {[%clk 0:00:47]}  Bb2 {[%clk 0:00:45]} 39. c5 {[%clk 0:00:37]}  Nxc5 {[%clk 0:00:39]} 40. Nd6+ {[%clk 0:00:37]}  Kf8 {[%clk 0:00:36]} 41. Nc4 {[%clk 0:00:37]}  Rb4 {[%clk 0:00:17]} 42. Nxb2 {[%clk 0:00:36]}  b5 {[%clk 0:00:17]} 43. Nd3 {[%clk 0:00:33]}  Nxd3 {[%clk 0:00:17]} 44. Rxd3 {[%clk 0:00:34]}  Rb2 {[%clk 0:00:18]} 45. Ra3 {[%clk 0:00:33]}  Ke7 {[%clk 0:00:16]} 46. Rxa6 {[%clk 0:00:33]}  b4 {[%clk 0:00:16]} 47. Nd4 {[%clk 0:00:32]}  Rd2 {[%clk 0:00:15]} 48. Nc6+ {[%clk 0:00:31]}  Kd6 {[%clk 0:00:14]} 49. Nxb4+ {[%clk 0:00:32]}  Kc5 {[%clk 0:00:15]} 50. a3 {[%clk 0:00:31]}  Kb5 {[%clk 0:00:16]} 51. Ra7 {[%clk 0:00:31]}  f5 {[%clk 0:00:14]} 52. h4 {[%clk 0:00:30]}  h5 {[%clk 0:00:14]} 53. Rf7 {[%clk 0:00:30]}  Ka4 {[%clk 0:00:14]} 54. Rxf5 {[%clk 0:00:29]}  Kxa3 {[%clk 0:00:15]} 55. Nd5 {[%clk 0:00:29]}  Kb3 {[%clk 0:00:15]} 56. Nf4 {[%clk 0:00:29]}  Kc4 {[%clk 0:00:15]} 57. Nxh5 {[%clk 0:00:29]}  Rd8 {[%clk 0:00:15]} 58. Nf4 {[%clk 0:00:29]}  Rf8 {[%clk 0:00:14]} 59. Rxf8 {[%clk 0:00:29]} 1-0


[Site "https://www.chess.com"]

[Event "Titled Tuesday Blitz August 22 Late 2023"]
[White "Sernecki, Franciszek"]
[Black "Khripachenko, Alexander"]
[WhiteFideId "1169297"]
[BlackFideId "54184975"]
[WhiteElo "2418"]
[BlackElo "2723"]
[Result "1-0"]
[Round "1"]
[TimeControl "180+1"]
[Date "2023.08.22"]
[WhiteClock "0:00:21"]
[BlackClock "0:00:00"]
[Board "91"]

1. e4 {[%clk 0:03:00]}  c5 {[%clk 0:02:56]} 2. Ne2 {[%clk 0:03:01]}  Nc6 {[%clk 0:02:54]} 3. Nbc3 {[%clk 0:03:01]}  e6 {[%clk 0:02:53]} 4. g3 {[%clk 0:03:02]}  g6 {[%clk 0:02:54]} 5. Bg2 {[%clk 0:03:02]}  Bg7 {[%clk 0:02:54]} 6. d3 {[%clk 0:03:03]}  Nge7 {[%clk 0:02:54]} 7. O-O {[%clk 0:02:59]}  O-O {[%clk 0:02:53]} 8. Be3 {[%clk 0:02:59]}  Nd4 {[%clk 0:02:53]} 9. Qd2 {[%clk 0:02:59]}  Nec6 {[%clk 0:02:51]} 10. Nd1 {[%clk 0:02:56]}  d6 {[%clk 0:02:49]} 11. c3 {[%clk 0:02:55]}  Nxe2+ {[%clk 0:02:49]} 12. Qxe2 {[%clk 0:02:56]}  Rb8 {[%clk 0:02:49]} 13. h4 {[%clk 0:02:49]}  b5 {[%clk 0:02:49]} 14. h5 {[%clk 0:02:47]}  b4 {[%clk 0:02:49]} 15. h6 {[%clk 0:02:46]}  Bh8 {[%clk 0:00:26]} 16. f4 {[%clk 0:02:40]}  bxc3 {[%clk 0:00:26]} 17. bxc3 {[%clk 0:02:40]}  Bd7 {[%clk 0:00:27]} 18. Qf2 {[%clk 0:02:25]}  Qa5 {[%clk 0:00:24]} 19. e5 {[%clk 0:02:18]}  dxe5 {[%clk 0:00:21]} 20. Bxc5 {[%clk 0:02:19]}  Rfe8 {[%clk 0:00:22]} 21. Bd6 {[%clk 0:02:18]}  Rbc8 {[%clk 0:00:20]} 22. fxe5 {[%clk 0:02:19]}  Rf8 {[%clk 0:00:13]} 23. Bxf8 {[%clk 0:02:18]}  Rxf8 {[%clk 0:00:13]} 24. d4 {[%clk 0:02:17]}  Ne7 {[%clk 0:00:14]} 25. Be4 {[%clk 0:01:53]}  Nf5 {[%clk 0:00:14]} 26. Bxf5 {[%clk 0:01:50]}  exf5 {[%clk 0:00:14]} 27. Qe3 {[%clk 0:01:43]}  Bc6 {[%clk 0:00:14]} 28. c4 {[%clk 0:01:29]}  Re8 {[%clk 0:00:14]} 29. Qc3 {[%clk 0:01:21]}  Qb6 {[%clk 0:00:14]} 30. c5 {[%clk 0:01:20]}  Qd8 {[%clk 0:00:13]} 31. Ne3 {[%clk 0:01:18]}  f4 {[%clk 0:00:13]} 32. Rxf4 {[%clk 0:01:17]}  Qg5 {[%clk 0:00:14]} 33. Ng4 {[%clk 0:01:09]}  f5 {[%clk 0:00:09]} 34. exf6 {[%clk 0:01:06]}  Re2 {[%clk 0:00:09]} 35. f7+ {[%clk 0:01:06]}  Kf8 {[%clk 0:00:09]} 36. Qb3 {[%clk 0:00:58]}  Qd8 {[%clk 0:00:08]} 37. Nf2 {[%clk 0:00:42]}  Bxd4 {[%clk 0:00:04]} 38. Rd1 {[%clk 0:00:38]}  Re4 {[%clk 0:00:03]} 39. Rxe4 {[%clk 0:00:34]}  Bxe4 {[%clk 0:00:03]} 40. Kf1 {[%clk 0:00:25]}  Qf6 {[%clk 0:00:03]} 41. Qb8+ {[%clk 0:00:19]}  Kxf7 {[%clk 0:00:03]} 42. Qf4 {[%clk 0:00:19]}  Qxf4 {[%clk 0:00:01]} 43. gxf4 {[%clk 0:00:20]}  Bxf2 {[%clk 0:00:01]} 44. Kxf2 {[%clk 0:00:20]}  Kf6 {[%clk 0:00:00]} 45. Ke3 {[%clk 0:00:21]} 1-0


[Site "https://www.chess.com"]

[Event "Titled Tuesday Blitz August 22 Late 2023"]
[White "Ronka, Erik"]
[Black "Makridis, Dimitrios"]
[WhiteFideId "505080"]
[BlackFideId "25864475"]
[WhiteElo "2415"]
[BlackElo "2719"]
[Result "0-1"]
[Round "1"]
[TimeControl "180+1"]
[Date "2023.08.22"]
[WhiteClock "0:00:03"]
[BlackClock "0:00:10"]
[Board "93"]

1. e4 {[%clk 0:02:51]}  c6 {[%clk 0:02:59]} 2. d4 {[%clk 0:02:49]}  d5 {[%clk 0:03:00]} 3. Nd2 {[%clk 0:02:50]}  dxe4 {[%clk 0:03:00]} 4. Nxe4 {[%clk 0:02:51]}  Bf5 {[%clk 0:03:00]} 5. Ng3 {[%clk 0:02:51]}  Bg6 {[%clk 0:03:00]} 6. h4 {[%clk 0:02:52]}  h6 {[%clk 0:03:01]} 7. Nf3 {[%clk 0:02:52]}  Nd7 {[%clk 0:03:01]} 8. h5 {[%clk 0:02:52]}  Bh7 {[%clk 0:03:01]} 9. Bd3 {[%clk 0:02:53]}  Bxd3 {[%clk 0:03:02]} 10. Qxd3 {[%clk 0:02:54]}  e6 {[%clk 0:03:02]} 11. Bd2 {[%clk 0:02:54]}  Ngf6 {[%clk 0:03:02]} 12. O-O-O {[%clk 0:02:55]}  Be7 {[%clk 0:03:02]} 13. Kb1 {[%clk 0:02:55]}  O-O {[%clk 0:03:03]} 14. Ne4 {[%clk 0:02:55]}  c5 {[%clk 0:03:03]} 15. g4 {[%clk 0:02:54]}  Nxg4 {[%clk 0:03:02]} 16. Qe2 {[%clk 0:02:52]}  Kh8 {[%clk 0:02:54]} 17. Rhg1 {[%clk 0:02:45]}  f5 {[%clk 0:02:53]} 18. Nc3 {[%clk 0:02:44]}  Qb6 {[%clk 0:02:47]} 19. Ne5 {[%clk 0:01:56]}  Ngxe5 {[%clk 0:02:20]} 20. dxe5 {[%clk 0:01:56]}  Qc7 {[%clk 0:02:18]} 21. Rde1 {[%clk 0:01:40]}  Rf7 {[%clk 0:02:03]} 22. Rg6 {[%clk 0:01:37]}  Nf8 {[%clk 0:02:00]} 23. Reg1 {[%clk 0:01:03]}  Kh7 {[%clk 0:00:54]} 24. Qe3 {[%clk 0:00:59]}  Bg5 {[%clk 0:00:37]} 25. f4 {[%clk 0:00:59]}  Be7 {[%clk 0:00:36]} 26. Qg3 {[%clk 0:00:57]}  Bd8 {[%clk 0:00:32]} 27. Nb5 {[%clk 0:00:53]}  Qd7 {[%clk 0:00:30]} 28. Nd6 {[%clk 0:00:53]}  Re7 {[%clk 0:00:26]} 29. Rf6 {[%clk 0:00:51]}  Bc7 {[%clk 0:00:21]} 30. Bc3 {[%clk 0:00:22]}  b5 {[%clk 0:00:17]} 31. a3 {[%clk 0:00:21]}  a5 {[%clk 0:00:15]} 32. a4 {[%clk 0:00:21]}  b4 {[%clk 0:00:15]} 33. Bd2 {[%clk 0:00:21]}  Bxd6 {[%clk 0:00:15]} 34. exd6 {[%clk 0:00:21]}  Qxd6 {[%clk 0:00:14]} 35. Rg6 {[%clk 0:00:14]}  Raa7 {[%clk 0:00:11]} 36. Be3 {[%clk 0:00:14]}  Nxg6 {[%clk 0:00:09]} 37. Qxg6+ {[%clk 0:00:07]}  Kh8 {[%clk 0:00:09]} 38. Kc1 {[%clk 0:00:07]}  Rf7 {[%clk 0:00:09]} 39. Rd1 {[%clk 0:00:07]}  Qe7 {[%clk 0:00:09]} 40. Bxc5 {[%clk 0:00:06]}  Qxc5 {[%clk 0:00:08]} 41. Rd8+ {[%clk 0:00:05]}  Rf8 {[%clk 0:00:08]} 42. Rd3 {[%clk 0:00:03]}  Raf7 {[%clk 0:00:07]} 43. b3 {[%clk 0:00:02]}  Qe7 {[%clk 0:00:07]} 44. Qg3 {[%clk 0:00:03]}  Qf6 {[%clk 0:00:07]} 45. Qe3 {[%clk 0:00:02]}  Qa1+ {[%clk 0:00:07]} 46. Kd2 {[%clk 0:00:03]}  Qf6 {[%clk 0:00:08]} 47. Rd4 {[%clk 0:00:03]}  Re7 {[%clk 0:00:08]} 48. Ke2 {[%clk 0:00:04]}  Rfe8 {[%clk 0:00:09]} 49. Rc4 {[%clk 0:00:04]}  e5 {[%clk 0:00:10]} 50. Kf2 {[%clk 0:00:05]}  exf4 {[%clk 0:00:10]} 51. Qb6 {[%clk 0:00:05]}  Re2+ {[%clk 0:00:10]} 52. Kf1 {[%clk 0:00:05]}  Re1+ {[%clk 0:00:10]} 53. Kf2 {[%clk 0:00:04]}  R8e2+ {[%clk 0:00:11]} 54. Kf3 {[%clk 0:00:05]}  Qxb6 {[%clk 0:00:10]} 55. Rc8+ {[%clk 0:00:02]}  Kh7 {[%clk 0:00:10]} 56. c4 {[%clk 0:00:03]}  Qe3# {[%clk 0:00:10]} 0-1


[Site "https://www.chess.com"]